bitfinex/quotes_SOLUSD_20250102
["timestamp","ask_amount","ask_price","bid_price","bid_amount"]
[1735823644368,0.89967647,208.44,208.42,7.97067221]
[1735823644957,0.89967647,208.44,208.41,7.97067221]
[1735823645369,0.89966986,208.46,208.41,7.97067221]
[1735823646757,0.89966986,208.46,208.42,7.97067221]
[1735823648468,0.89966986,208.46,208.41,7.97067221]
[1735823649080,0.89966986,208.46,208.4,7.97067221]
[1735823650079,0.89966986,208.46,208.41,7.97067221]
[1735823650773,0.89966986,208.46,208.35,0.55803342]
[1735823650980,0.89966986,208.46,208.42,7.97067221]
[1735823651882,0.89966986,208.46,208.41,7.97067221]
[1735823652081,0.89966986,208.46,208.4,7.97067221]
[1735823653480,0.89966986,208.46,208.36,11.9978]
[1735823653780,0.89966986,208.46,208.4,7.97067221]
[1735823653980,0.89966986,208.46,208.41,7.97067221]
[1735823654767,0.89966986,208.46,208.4,7.97067221]
[1735823655681,8.87034207,208.46,208.39,7.97067221]
[1735823656382,0.89966986,208.46,208.41,7.97067221]
[1735823656761,0.89966986,208.46,208.4,7.97067221]
[1735823657162,0.89966986,208.46,208.36,11.9978]
[1735823657378,7.97067221,208.45,208.38,7.97067221]
[1735823657569,8.87043086,208.44,208.37,7.97067221]
[1735823657769,7.97067221,208.43,208.36,7.97067221]
[1735823657960,0.89987096,208.42,208.36,7.97067221]
[1735823658886,0.89987096,208.42,208.37,7.97067221]
[1735823659066,0.89983353,208.41,208.36,7.97067221]
[1735823659266,0.89983353,208.41,208.37,7.97067221]
[1735823659477,0.89983569,208.43,208.37,7.97067221]
[1735823659681,0.89983569,208.43,208.38,7.97067221]
[1735823659880,0.89983569,208.43,208.37,7.97067221]
[1735823660104,8.09616221,208.4,208.27,82.15]
[1735823660398,0.90005866,208.39,208.33,7.97067221]
[1735823661499,0.90005866,208.39,208.34,7.97067221]
[1735823662691,0.90005866,208.39,208.27,82.15]
[1735823663000,8.87073087,208.39,208.33,7.97067221]
[1735823663676,8.34714221,208.37,208.3,7.97067221]
[1735823663891,0.12549,208.35,208.3,7.97067221]
[1735823664176,0.12549,208.35,208.31,7.97067221]
[1735823664793,0.90021375,208.36,208.31,7.97067221]
[1735823665521,0.90021375,208.36,208.33,7.97067221]
[1735823665800,0.90013835,208.35,208.32,7.97067221]
[1735823665981,0.90013835,208.35,208.27,0.25]
[1735823666174,0.90013835,208.35,208.31,7.97067221]
[1735823666380,8.87081056,208.35,208.29,7.97067221]
[1735823666593,0.90013835,208.35,208.3,7.97067221]
[1735823666793,0.90020155,208.34,208.3,7.97067221]
[1735823667105,0.90019788,208.36,208.31,7.97067221]
[1735823669580,0.90019788,208.36,208.27,0.25]
[1735823669778,7.97067221,208.3,208.27,0.25]
[1735823670102,0.90032914,208.29,208.27,0.25]
[1735823670291,16.14844009,208.29,208.27,0.25]
[1735823670598,8.17776788,208.29,208.27,0.25]
[1735823671000,0.90032914,208.29,208.27,0.25]
[1735823671318,0.90043161,208.31,208.27,8.22067221]
[1735823672403,0.90032195,208.3,208.27,0.25]
[1735823672708,0.90031779,208.33,208.27,8.22067221]
[1735823675315,0.90031779,208.33,208.28,7.97067221]
[1735823675614,0.90031779,208.33,208.3,7.97067221]
[1735823675781,0.90031779,208.33,208.31,7.97067221]
[1735823676201,0.90031779,208.33,208.3,7.97067221]
[1735823676611,0.90031779,208.33,208.29,7.97067221]
[1735823677489,0.90031779,208.33,208.27,0.25]
[1735823677490,0.12549,208.32,208.28,7.97067221]
[1735823677695,0.90034542,208.31,208.28,7.97067221]
[1735823678587,0.90029013,208.33,208.28,7.97067221]
[1735823678986,0.12549,208.28,208.27,0.25]
[1735823679290,34.66670869,208.28,208.27,0.25]
[1735823680283,26.69603648,208.28,208.27,0.25]
[1735823680486,34.66670869,208.28,208.27,0.25]
[1735823685694,2.66817248,208.28,208.27,0.25]
[1735823687115,0.90048248,208.28,208.27,0.25]
[1735823687291,1.6342,208.34,208.27,0.25]
[1735823687292,7.97067221,208.32,208.27,0.25]
[1735823687490,0.12549,208.3,208.27,0.25]
[1735823688601,8.09616221,208.3,208.27,0.25]
[1735823688801,0.90048078,208.29,208.27,0.25]
[1735823689202,8.87115299,208.29,208.27,0.25]
[1735823689610,0.12549,208.28,208.27,0.25]
[1735823690403,8.87115299,208.29,208.27,0.25]
[1735823690805,0.12549,208.28,208.27,0.25]
[1735823691407,8.09616221,208.28,208.27,0.25]
[1735823691608,8.99673131,208.28,208.27,0.25]
[1735823692515,8.09616221,208.28,208.27,0.25]
[1735823693220,0.12549,208.28,208.27,0.25]
[1735823693404,1.02602912,208.28,208.27,0.25]
[1735823694607,0.90053912,208.28,208.27,0.25]
[1735823699526,8.87106391,208.33,208.27,0.25]
[1735823699824,0.9003917,208.33,208.3,7.97067221]
[1735823700024,0.9003917,208.33,208.29,7.97067221]
[1735823700230,32.12402621,208.32,208.27,0.25]
[1735823700420,8.87112005,208.31,208.27,0.25]
[1735823700725,0.12549,208.3,208.27,0.25]
[1735823701302,8.09616221,208.3,208.27,0.25]
[1735823701508,0.90046326,208.29,208.27,0.25]
[1735823702421,0.90037484,208.31,208.27,0.25]
[1735823703512,0.90037484,208.31,208.27,8.22067221]
[1735823703707,7.97067221,208.34,208.27,8.22067221]
[1735823703708,0.90029515,208.33,208.28,7.97067221]
[1735823703908,0.90029515,208.33,208.29,7.97067221]
[1735823704112,0.90029515,208.33,208.27,8.22067221]
[1735823704308,0.90029515,208.33,208.28,7.97067221]
[1735823704603,0.90029515,208.33,208.27,8.22067221]
[1735823706827,8.87096736,208.33,208.27,0.25]
[1735823707207,0.90029515,208.33,208.27,8.22067221]
[1735823707622,7.97067221,208.31,208.27,0.25]
[1735823707820,0.90033118,208.3,208.27,0.25]
[1735823708009,7.97067221,208.29,208.27,0.25]
[1735823708208,0.9003825,208.28,208.27,0.25]
[1735823709330,0.90041303,208.29,208.27,0.25]
[1735823710404,0.9003877,208.28,208.27,0.25]
[1735823710605,0.90037555,208.3,208.27,0.25]
[1735823711728,7.97067221,208.29,208.27,0.25]
[1735823712022,0.90038309,208.28,208.27,0.25]
[1735823712607,0.90037639,208.3,208.27,0.25]
[1735823712930,8.8710486,208.3,208.27,0.25]
[1735823713729,7.97067221,208.29,208.27,0.25]
[1735823714027,0.90038561,208.28,208.27,0.25]
[1735823714411,8.99654782,208.28,208.27,0.25]
[1735823715408,8.87105782,208.28,208.27,0.25]
[1735823715617,8.99654782,208.28,208.27,0.25]
[1735823716127,34.52571182,208.28,208.27,0.25]
[1735823716314,24.153354,208.27,208.12,7.8541]
[1735823716509,7.97067221,208.19,208.12,15.82477221]
[1735823716704,0.90086475,208.18,208.12,7.8541]
[1735823716910,7.97067221,208.13,208.09,7.48428134]
[1735823717110,7.97067221,208.11,208.09,7.48428134]
[1735823717331,0.90116596,208.1,208.09,7.48428134]
[1735823717531,0.90112745,208.16,208.09,7.97067221]
[1735823717751,0.90112745,208.16,208.1,7.97067221]
[1735823718032,0.12549,208.15,208.08,7.97067221]
[1735823718213,0.90107475,208.14,208.08,7.97067221]
[1735823718619,0.90107475,208.14,208.07,7.97067221]
[1735823718815,8.87174696,208.14,208.04,20.0]
[1735823719021,8.87174696,208.14,208.06,7.97067221]
[1735823719219,8.87174696,208.14,208.07,7.97067221]
[1735823719220,0.90107475,208.14,208.07,7.97067221]
[1735823719536,0.9010541,208.13,208.09,7.97067221]
[1735823719736,0.90097033,208.15,208.09,7.97067221]
[1735823720554,8.87164254,208.15,208.08,7.97067221]
[1735823721635,8.87164254,208.15,208.02,0.56064503]
[1735823721842,8.87164254,208.15,208.07,7.97067221]
[1735823722222,7.97067221,208.14,208.07,7.97067221]
[1735823722436,7.97067221,208.12,208.01,143.3101]
[1735823722743,8.09616221,208.1,208.03,7.97067221]
[1735823722934,8.09616221,208.1,208.01,7.7101]
[1735823722935,8.87201173,208.09,208.02,7.97067221]
[1735823723138,24.027864,208.08,208.01,7.7101]
[1735823723324,0.12549,208.06,208.0,7.97067221]
[1735823723531,0.12549,208.06,207.96,8.0541]
[1735823723722,0.12549,208.06,208.0,7.97067221]
[1735823725539,8.09616221,208.06,207.99,7.97067221]
[1735823725743,0.90147678,208.05,207.99,7.97067221]
[1735823726646,0.12549,208.04,207.98,7.97067221]
[1735823727223,0.90156689,208.03,208.0,7.97067221]
[1735823727631,7.97067221,208.09,208.02,7.97067221]
[1735823727837,0.12549,208.07,208.02,7.97067221]
[1735823729135,0.90145504,208.08,208.04,7.97067221]
[1735823729341,0.90131634,208.07,208.04,7.97067221]
[1735823729524,0.12549,208.09,208.04,7.97067221]
[1735823731042,0.12549,208.09,208.03,7.97067221]
[1735823731243,8.09616221,208.09,208.02,7.97067221]
[1735823731451,0.90133998,208.08,208.02,7.97067221]
[1735823732369,0.37647,207.94,207.78,14.96856269]
[1735823732528,7.97067221,207.92,207.84,7.97067221]
[1735823732855,0.12549,207.9,207.84,7.97067221]
[1735823733038,0.90220077,207.89,207.84,7.97067221]
[1735823733346,0.12549,207.88,207.84,7.97067221]
[1735823733548,0.90220077,207.89,207.84,7.97067221]
[1735823733753,0.90220077,207.89,207.83,7.97067221]
[1735823733929,0.90219507,207.88,207.76,6.88987922]
[1735823734129,0.90219507,207.88,207.84,7.97067221]
[1735823734332,0.90219507,207.88,207.84,12.52580868]
[1735823734530,0.90219507,207.88,207.85,12.52580868]
[1735823734731,0.90219507,207.88,207.86,12.52580868]
[1735823734944,0.9021927,207.87,207.85,12.52580868]
[1735823735242,0.12549,207.89,207.85,12.52580868]
[1735823735647,0.12549,207.89,207.86,12.52580868]
[1735823735851,0.12549,207.89,207.85,12.52580868]
[1735823736630,0.90219468,207.91,207.88,12.52580868]
[1735823736864,12.52580868,208.01,207.9,12.52580868]
[1735823737164,0.90180808,208.0,207.94,12.52580868]
[1735823737467,13.42761676,208.0,207.94,12.52580868]
[1735823737637,0.90180808,208.0,207.94,12.52580868]
[1735823738048,0.90174415,207.99,207.94,12.52580868]
[1735823738936,0.90174415,207.99,207.95,12.52580868]
[1735823739168,0.90172137,207.98,207.94,12.52580868]
[1735823739750,0.90172137,207.98,207.95,12.52580868]
[1735823739948,0.12549,208.0,207.95,12.52580868]
[1735823740245,12.65129868,208.0,207.93,12.52580868]
[1735823740448,0.90174851,207.99,207.93,12.52580868]
[1735823740640,0.90174851,207.99,207.94,12.52580868]
[1735823740848,0.90174851,207.99,207.95,12.52580868]
[1735823741340,0.90169421,207.98,207.95,12.52580868]
[1735823741542,0.90164756,208.01,207.95,12.52580868]
[1735823742569,12.65129868,208.0,207.94,12.52580868]
[1735823742775,0.90176052,207.99,207.94,12.52580868]
[1735823743676,0.90175992,207.98,207.94,12.52580868]
[1735823744571,0.90175992,207.98,207.93,12.52580868]
[1735823744754,0.9017614,207.97,207.93,12.52580868]
[1735823745749,0.90181697,207.96,207.91,12.52580868]
[1735823746150,0.90181697,207.96,207.92,12.52580868]
[1735823746472,0.90179226,207.98,207.93,12.52580868]
[1735823746857,0.90179226,207.98,207.88,6.0491]
[1735823747084,7.9006,208.05,207.97,12.52580868]
[1735823747085,0.90177587,208.04,207.97,12.52580868]
[1735823747383,0.90177587,208.04,208.0,12.52580868]
[1735823747586,0.90177587,208.04,208.01,12.52580868]
[1735823747754,0.90141337,208.08,208.01,12.52580868]
[1735823748290,12.65129868,208.07,208.0,12.52580868]
[1735823748470,0.90146399,208.06,208.0,12.52580868]
[1735823748677,13.42727267,208.06,207.99,12.52580868]
[1735823748988,24.027864,208.05,207.99,12.52580868]
[1735823749150,0.12549,208.03,207.98,12.52580868]
[1735823749354,0.90158399,208.04,207.99,12.52580868]
[1735823749549,0.90158399,208.04,208.0,12.52580868]
[1735823749794,6.1742,208.1,207.91,24.58964567]
[1735823749795,0.90145382,208.07,208.02,12.52580868]
[1735823749970,0.90145382,208.07,208.01,12.52580868]
[1735823750283,0.90145382,208.07,208.02,12.52580868]
[1735823750483,0.90145382,208.07,208.03,12.52580868]
[1735823750686,0.90130185,208.09,208.03,12.52580868]
[1735823751256,0.90130185,208.09,208.04,12.52580868]
[1735823751687,0.90130185,208.09,208.03,12.52580868]
[1735823752261,0.90130185,208.09,208.02,12.52580868]
[1735823752463,0.90130185,208.09,208.04,12.52580868]
[1735823752780,0.90123865,208.1,208.06,12.52580868]
[1735823753156,0.90123865,208.1,208.07,12.52580868]
[1735823753370,0.90113265,208.13,208.07,12.52580868]
[1735823753967,0.90113265,208.13,208.08,12.52580868]
[1735823754561,0.90113265,208.13,208.06,12.52580868]
[1735823754764,0.12549,208.12,208.05,12.52580868]
[1735823754975,0.90121622,208.11,208.05,12.52580868]
[1735823755776,0.90121622,208.11,208.06,12.52580868]
[1735823755989,0.12549,208.12,208.06,12.52580868]
[1735823756279,0.90114893,208.12,208.08,12.52580868]
[1735823756476,0.90103063,208.15,208.11,12.52580868]
[1735823756683,0.90093082,208.18,208.12,12.52580868]
[1735823758857,0.90093082,208.18,208.15,12.52580868]
[1735823759078,0.90080024,208.2,208.16,12.52580868]
[1735823759375,0.90080024,208.2,208.17,12.52580868]
[1735823759763,13.42652002,208.23,208.17,12.52580868]
[1735823759964,13.42652002,208.23,208.16,12.52580868]
[1735823760559,13.42652002,208.23,208.17,12.52580868]
[1735823760759,0.90071134,208.23,208.17,12.52580868]
[1735823762492,13.42652002,208.23,208.17,12.52580868]
[1735823762667,0.90071134,208.23,208.17,12.52580868]
[1735823762866,0.90071134,208.23,208.18,12.52580868]
[1735823763067,0.90060179,208.22,208.19,12.52580868]
[1735823763268,0.90058761,208.25,208.19,12.52580868]
[1735823763778,0.90058761,208.25,208.2,12.52580868]
[1735823763959,0.90058761,208.25,208.11,136.28537742]
[1735823763960,0.90058761,208.25,208.21,12.52580868]
[1735823764167,8.2226,208.31,208.24,12.52580868]
[1735823764168,0.90053859,208.3,208.24,12.52580868]
[1735823764689,0.90053859,208.3,208.25,12.52580868]
[1735823765477,0.90053859,208.3,208.26,12.52580868]
[1735823765692,0.90025672,208.32,208.26,12.52580868]
[1735823766074,0.90025672,208.32,208.2,12.52580868]
[1735823766075,13.4260654,208.32,208.25,12.52580868]
[1735823766279,12.52580868,208.31,208.24,12.52580868]
[1735823766487,0.90035006,208.3,208.24,12.52580868]
[1735823766992,12.52580868,208.29,208.22,12.52580868]
[1735823767166,13.42627743,208.28,208.21,12.52580868]
[1735823767563,13.42627743,208.28,208.21,32.52580868]
[1735823767782,13.42627743,208.28,208.21,12.52580868]
[1735823767992,0.90046875,208.28,208.22,12.52580868]
[1735823768390,12.52580868,208.31,208.24,12.52580868]
[1735823768579,0.90031449,208.3,208.25,12.52580868]
[1735823769572,0.90027362,208.31,208.25,12.52580868]
[1735823769778,13.4260823,208.31,208.25,12.52580868]
[1735823769992,12.65129868,208.3,208.23,12.52580868]
[1735823770175,13.42623599,208.29,208.22,12.52580868]
[1735823770492,0.90042731,208.29,208.24,12.52580868]
[1735823771083,0.90031401,208.3,208.24,12.52580868]
[1735823771466,0.90031401,208.3,208.25,12.52580868]
[1735823772287,0.90026274,208.31,208.24,12.52580868]
[1735823772494,0.90026274,208.31,208.26,12.52580868]
[1735823773299,12.52580868,208.31,208.24,12.52580868]
[1735823773505,12.52580868,208.33,208.25,12.52580868]
[1735823773682,0.90022096,208.32,208.25,12.52580868]
[1735823774083,0.90022096,208.32,208.26,12.52580868]
[1735823775273,0.90017157,208.33,208.26,12.52580868]
[1735823776214,0.90017157,208.33,208.27,12.52580868]
[1735823776416,0.90017157,208.33,208.28,12.52580868]
[1735823776694,0.90017341,208.34,208.23,20.0]
[1735823776890,13.42598209,208.34,208.27,12.52580868]
[1735823777194,0.90017341,208.34,208.28,12.52580868]
[1735823778096,0.90017341,208.34,208.29,12.52580868]
[1735823778300,13.42590677,208.35,208.28,12.52580868]
[1735823778489,0.90009809,208.35,208.29,12.52580868]
[1735823779491,1.5049,208.36,208.29,12.52580868]
[1735823779696,2.40491566,208.36,208.29,12.52580868]
[1735823780696,2.40491566,208.36,208.3,12.52580868]
[1735823781308,2.40491566,208.36,208.29,12.52580868]
[1735823782397,14.93072434,208.36,208.28,12.52580868]
[1735823783182,2.40491566,208.36,208.29,12.52580868]
[1735823785205,2.40491566,208.36,208.31,12.52580868]
[1735823785393,1.5049,208.36,208.31,12.52580868]
[1735823785710,1.5049,208.36,208.29,12.52580868]
[1735823785878,2.40491368,208.36,208.29,12.52580868]
[1735823786278,12.52580868,208.33,208.25,12.52580868]
[1735823786484,0.90019473,208.32,208.25,12.52580868]
[1735823786719,12.52580868,208.31,208.24,12.52580868]
[1735823787022,0.90029046,208.3,208.18,6.5487]
[1735823787186,0.90029046,208.3,208.18,12.52580868]
[1735823787187,12.52580868,208.26,208.18,12.52580868]
[1735823787393,13.42628696,208.25,208.17,12.52580868]
[1735823788125,13.42628696,208.25,208.18,12.52580868]
[1735823788823,0.90047828,208.25,208.19,12.52580868]
[1735823789517,0.90047828,208.25,208.2,12.52580868]
[1735823789719,14.15090868,208.27,208.16,20.0]
[1735823789720,0.90048663,208.26,208.19,12.52580868]
[1735823789918,0.90048663,208.26,208.2,12.52580868]
[1735823790923,13.42629531,208.26,208.19,12.52580868]
[1735823791898,0.12549,208.25,208.19,12.52580868]
[1735823792100,12.65129868,208.25,208.17,12.52580868]
[1735823792399,13.42644184,208.24,208.17,12.52580868]
[1735823793199,0.90063316,208.24,208.18,12.52580868]
[1735823793942,13.42644184,208.24,208.17,12.52580868]
[1735823795015,13.42644184,208.24,208.14,12.52580868]
[1735823795016,12.52580868,208.21,208.14,12.52580868]
[1735823795238,0.90075162,208.2,208.14,12.52580868]
[1735823795548,0.90075162,208.2,208.15,12.52580868]
[1735823796345,0.90075732,208.19,208.13,12.52580868]
[1735823797039,0.90075732,208.19,208.14,12.52580868]
[1735823797223,12.65129868,208.23,208.16,12.52580868]
[1735823797427,0.90065303,208.22,208.17,12.52580868]
[1735823797628,13.42646171,208.22,208.15,12.52580868]
[1735823799347,0.90065303,208.22,208.16,12.52580868]
[1735823799769,13.42646171,208.22,208.16,12.52580868]
[1735823800253,13.42646171,208.22,208.15,12.52580868]
[1735823801151,13.42646171,208.22,208.11,0.12549]
[1735823801342,0.90065303,208.22,208.16,12.52580868]
[1735823801543,0.9006158,208.25,208.21,12.52580868]
[1735823801747,0.90044572,208.26,208.21,12.52580868]
[1735823802454,2.52554425,208.27,208.22,12.52580868]
[1735823803354,2.52554425,208.27,208.21,12.52580868]
[1735823803825,2.52554425,208.27,208.15,0.55942155]
[1735823803826,15.05135293,208.27,208.15,0.55942155]
[1735823804032,15.05135293,208.27,208.2,12.52580868]
[1735823804453,15.05135293,208.27,208.21,12.52580868]
[1735823806336,2.52554425,208.27,208.22,12.52580868]
[1735823806542,19.04160868,208.3,208.24,12.52580868]
[1735823806847,12.52580868,208.3,208.24,12.52580868]
[1735823807041,12.52580868,208.31,208.24,12.52580868]
[1735823807242,14.09830868,208.32,208.25,12.52580868]
[1735823807844,1.5725,208.32,208.28,12.52580868]
[1735823808246,1.5725,208.32,208.27,12.52580868]
[1735823808457,1.5725,208.32,208.23,0.12549]
[1735823808458,1.5725,208.32,208.26,12.52580868]
[1735823809362,12.52580868,208.34,208.27,12.52580868]
[1735823809745,18.90050868,208.35,208.28,12.52580868]
[1735823810366,12.52580868,208.36,208.29,12.52580868]
[1735823810668,13.4258532,208.37,208.3,12.52580868]
[1735823812661,12.52580868,208.36,208.29,12.52580868]
[1735823812971,13.42581279,208.36,208.29,12.52580868]
[1735823813275,12.52580868,208.35,208.28,12.52580868]
[1735823813451,13.42590539,208.34,208.27,32.52580868]
[1735823814169,12.52580868,208.32,208.26,12.52580868]
[1735823814354,13.4260378,208.31,208.24,12.52580868]
[1735823814557,13.4260378,208.31,208.19,137.1852]
[1735823814558,0.90022912,208.31,208.25,12.52580868]
[1735823814760,12.52580868,208.32,208.25,12.52580868]
[1735823814962,12.52580868,208.34,208.27,12.52580868]
[1735823815165,13.4260118,208.35,208.28,12.52580868]
[1735823816276,0.90020312,208.35,208.29,12.52580868]
[1735823816660,12.52580868,208.37,208.3,12.52580868]
[1735823816971,0.89999625,208.36,208.3,12.52580868]
[1735823817563,13.42580493,208.36,208.29,12.52580868]
[1735823819464,12.52580868,208.35,208.28,12.52580868]
[1735823820783,13.42583443,208.36,208.29,12.52580868]
[1735823821278,12.52580868,208.35,208.28,12.52580868]
[1735823822578,13.42591259,208.36,208.29,12.52580868]
[1735823824384,7.98222335,208.35,208.28,7.98222335]
[1735823824761,7.98222335,208.33,208.26,27.98222335]
[1735823825377,7.98222335,208.34,208.26,20.0]
[1735823825686,7.98222335,208.34,208.27,7.98222335]
[1735823827187,7.98222335,208.32,208.25,7.98222335]
[1735823827688,0.9001866,208.31,208.25,7.98222335]
[1735823828188,8.88240995,208.31,208.24,7.98222335]
[1735823829363,7.98222335,208.32,208.25,7.98222335]
[1735823830491,7.98222335,208.33,208.27,7.98222335]
[1735823831410,7.98222335,208.31,208.24,27.98222335]
[1735823831804,7.98222335,208.32,208.25,7.98222335]
[1735823832403,7.98222335,208.3,208.2,0.55899206]
[1735823832607,7.98222335,208.25,208.18,7.98222335]
[1735823832891,7.98222335,208.24,208.17,7.98222335]
[1735823833066,7.98222335,208.25,208.18,7.98222335]
[1735823833682,7.98222335,208.25,208.15,20.0]
[1735823833683,8.88271623,208.24,208.17,7.98222335]
[1735823833876,0.90049288,208.28,208.19,7.98222335]
[1735823834189,8.88271623,208.28,208.21,7.98222335]
[1735823834389,10.43137445,208.29,208.21,7.98222335]
[1735823834571,7.98222335,208.28,208.21,7.98222335]
[1735823835671,8.8825337,208.28,208.21,7.98222335]
[1735823836584,7.98222335,208.28,208.21,7.98222335]
[1735823837183,7.98222335,208.28,208.15,34.71299265]
[1735823837184,9.53102335,208.29,208.22,7.98222335]
[1735823837384,1.5488,208.29,208.23,7.98222335]
[1735823839478,1.5488,208.29,208.24,7.98222335]
[1735823839798,1.5488,208.29,208.23,7.98222335]
[1735823840403,8.88249822,208.28,208.22,7.98222335]
[1735823840691,8.88249822,208.28,208.15,0.12549]
[1735823840692,7.98222335,208.27,208.15,0.12549]
[1735823840883,0.90048566,208.26,208.2,7.98222335]
[1735823842004,0.90048566,208.26,208.21,7.98222335]
[1735823842179,0.90042599,208.27,208.21,7.98222335]
[1735823843794,0.90042599,208.27,208.22,7.98222335]
[1735823844011,1.5488,208.29,208.23,7.98222335]
[1735823844203,1.5488,208.29,208.24,7.98222335]
[1735823844503,1.5488,208.29,208.25,7.98222335]
[1735823844699,7.98222335,208.26,208.11,142.1228]
[1735823844877,7.98222335,208.24,208.16,7.98222335]
[1735823845079,0.90060848,208.23,208.12,0.25098]
[1735823845277,0.90060848,208.23,208.16,7.98222335]
[1735823845581,1.5304,208.22,208.14,20.0]
[1735823845780,1.5304,208.22,208.15,7.98222335]
[1735823846083,0.90061294,208.21,208.15,7.98222335]
[1735823846286,7.98222335,208.2,208.13,7.98222335]
[1735823846603,0.90077543,208.19,208.13,7.98222335]
[1735823846811,0.90077543,208.19,208.07,135.6]
[1735823846812,0.90077543,208.19,208.12,7.98222335]
[1735823846985,15.45449878,208.19,208.07,135.6]
[1735823847179,15.45449878,208.19,208.11,7.98222335]
[1735823847376,7.98222335,208.16,208.04,7.48428134]
[1735823847711,0.90098968,208.15,208.09,7.98222335]
[1735823848196,7.98222335,208.14,208.06,7.98222335]
[1735823848399,0.90105589,208.13,208.06,12.4990935]
[1735823848600,0.90105589,208.13,208.07,12.4990935]
[1735823849396,13.40014939,208.13,207.98,145.6]
[1735823849596,13.40014939,208.13,208.06,12.4990935]
[1735823850701,12.4990935,208.08,207.94,7.48428134]
[1735823850890,0.90125484,208.07,208.01,12.4990935]
[1735823851283,0.90125484,208.07,207.95,136.16119351]
[1735823851489,0.90125484,208.07,208.0,12.4990935]
[1735823851679,0.90125484,208.07,208.01,12.4990935]
[1735823852189,0.90125484,208.07,207.91,135.6]
[1735823852397,13.4005023,208.06,207.98,12.4990935]
[1735823852799,12.4990935,208.05,207.98,12.4990935]
[1735823853106,0.90142724,208.04,207.97,12.4990935]
[1735823853520,0.90142724,208.04,207.98,12.4990935]
[1735823854180,0.90142724,208.04,207.97,12.4990935]
[1735823855203,0.90142724,208.04,207.98,12.4990935]
[1735823855513,0.9014688,208.03,207.99,12.4990935]
[1735823855700,1.6112,208.04,207.98,12.4990935]
[1735823855900,7.1729652,208.03,207.86,5.0]
[1735823856203,6.2715,208.03,208.01,12.4990935]
[1735823856910,6.2715,208.03,207.99,12.4990935]
[1735823857085,6.2715,208.03,207.97,12.4990935]
[1735823857086,0.9013948,208.02,207.97,12.4990935]
[1735823858495,0.9013948,208.02,207.96,12.4990935]
[1735823858692,12.4990935,208.01,207.89,20.0]
[1735823858895,0.90163965,208.0,207.95,12.4990935]
[1735823859209,0.90163965,208.0,207.97,12.4990935]
[1735823859499,6.2715,208.03,207.97,12.4990935]
[1735823859500,0.90157051,208.01,207.97,12.4990935]
[1735823859708,0.90157051,208.01,207.96,12.4990935]
[1735823860488,7.17301398,208.03,207.98,12.4990935]
[1735823860688,7.17301398,208.03,207.99,12.4990935]
[1735823861299,7.17301398,208.03,207.97,12.4990935]
[1735823861811,7.17301398,208.03,207.98,12.4990935]
[1735823862106,7.17301398,208.03,207.97,12.4990935]
[1735823863012,7.17301398,208.03,207.98,12.4990935]
[1735823863392,2.51265049,208.04,208.0,12.4990935]
[1735823863593,1.6112,208.04,208.0,12.4990935]
[1735823864308,1.6112,208.04,207.99,12.4990935]
[1735823864505,0.90142375,208.03,207.99,12.4990935]
[1735823865003,0.90142375,208.03,207.98,12.4990935]
[1735823865208,1.6112,208.04,207.98,12.4990935]
[1735823865408,1.6112,208.04,207.99,12.4990935]
[1735823865912,0.90139593,208.03,207.98,12.4990935]
[1735823866517,0.90139593,208.03,207.99,12.4990935]
[1735823866711,0.90139593,208.03,207.98,12.4990935]
[1735823866914,0.90139593,208.03,207.97,12.4990935]
[1735823868400,2.51268539,208.04,207.98,12.4990935]
[1735823869421,2.51268539,208.04,207.94,20.0]
[1735823869422,1.6112,208.04,207.99,12.4990935]
[1735823870420,1.6112,208.04,207.99,8.00503172]
[1735823870811,1.6112,208.04,208.0,8.00503172]
[1735823871511,1.6112,208.04,208.01,8.00503172]
[1735823872313,1.6112,208.04,208.0,8.00503172]
[1735823872907,1.6112,208.04,207.9,32.02012688]
[1735823872908,8.90640244,208.03,207.96,8.00503172]
[1735823873722,0.90137072,208.03,207.96,8.00503172]
[1735823873922,8.90640244,208.03,207.96,8.00503172]
[1735823874718,8.90640244,208.03,207.95,8.00503172]
[1735823875405,8.90640244,208.03,207.91,0.25098]
[1735823875612,8.90640244,208.03,207.9,20.56177517]
[1735823875822,8.00503172,208.02,207.95,8.00503172]
[1735823876033,8.90663994,208.01,207.94,8.00503172]
[1735823876413,14.43323172,208.0,207.93,8.00503172]
[1735823876721,0.90166058,207.99,207.94,8.00503172]
[1735823876937,0.90166058,207.99,207.95,8.00503172]
[1735823877236,0.90166058,207.99,207.96,8.00503172]
[1735823877428,0.90162507,207.99,207.94,8.00503172]
[1735823877637,0.90158831,208.01,207.95,8.00503172]
[1735823877937,0.90158831,208.01,207.89,0.37647]
[1735823878236,0.90155487,208.02,207.96,8.00503172]
[1735823878531,0.90148039,208.03,207.97,8.00503172]
[1735823878832,0.90148039,208.03,207.98,8.00503172]
[1735823879415,1.6112,208.04,208.0,8.00503172]